bitfinex-derivatives/quotes_ETHF0:USTF0_20260307
["timestamp","ask_amount","ask_price","bid_price","bid_amount"]
[1772860833412,0.60144172,1973.7,1973.0,0.54694022]
[1772860834412,2.56244787,1973.4,1972.8,0.54694022]
[1772860834816,0.60144172,1973.4,1972.8,0.54694022]
[1772860835116,0.60144172,1973.4,1972.9,0.54694022]
[1772860841017,0.60144172,1973.4,1972.7,41.34694022]
[1772860841214,0.60144172,1973.4,1972.8,0.54694022]
[1772860841716,0.60144172,1973.8,1973.3,0.54694022]
[1772860842715,0.60144172,1973.6,1973.0,0.54694022]
[1772860845715,0.60144172,1973.4,1972.8,0.54694022]
[1772860859834,0.60144172,1973.4,1972.9,0.54914488]
[1772860861638,0.587044,1973.8,1972.9,0.54914488]
[1772860861840,0.587044,1973.6,1972.9,0.54914488]
[1772860873242,0.5853325,1973.8,1972.9,0.54914488]
[1772860874241,0.5853325,1974.0,1973.1,0.54557772]
[1772860874447,6.96252048,1973.9,1973.3,0.54557772]
[1772860874643,0.5853325,1973.9,1973.3,0.54557772]
[1772860875348,0.5900415,1974.0,1973.3,0.54557772]
[1772860876846,0.00392979,1974.1,1973.3,0.54557772]
[1772860877347,0.59397129,1974.1,1973.3,0.54557772]
[1772860877745,0.5900415,1973.9,1973.0,0.57185011]
[1772860894652,0.56899032,1974.0,1973.0,0.57185011]
[1772860896148,0.57292011,1974.1,1973.3,0.5826658]
[1772860896350,0.57292011,1974.1,1973.5,0.5826658]
[1772860913763,0.56899032,1974.3,1973.5,0.5826658]
[1772860914568,0.57491053,1974.3,1973.5,0.5826658]
[1772860925076,0.57491053,1974.3,1973.7,0.56210283]
[1772860927480,0.00592021,1974.3,1973.9,0.56210283]
[1772860927676,0.60070586,1974.5,1973.9,0.56210283]
[1772860927871,0.60070586,1974.7,1974.1,0.56210283]
[1772860928077,0.60070586,1974.5,1974.1,0.56210283]
[1772860928678,6.34827901,1975.0,1974.1,0.56210283]
[1772860928679,4.24314705,1975.0,1974.3,0.56210283]
[1772860928883,0.44615921,1974.7,1974.3,0.56210283]
[1772860929884,0.45226144,1974.7,1974.3,0.56210283]
[1772860930983,4.49629705,1975.2,1974.3,0.56210283]
[1772860931183,6.2206611,1975.1,1974.3,0.56210283]
[1772860931384,6.2206611,1975.0,1974.3,0.56210283]
[1772860931585,0.41132228,1975.0,1974.3,0.56210283]
[1772860931785,0.25315,1975.2,1974.3,0.56210283]
[1772860931985,6.2175496,1975.1,1974.3,0.56210283]
[1772860932186,0.25912496,1975.2,1974.3,0.56210283]
[1772860932386,6.21506771,1975.1,1974.3,0.56210283]
[1772860932582,0.25912496,1975.2,1974.3,0.56210283]
[1772860932786,6.21507598,1975.1,1974.3,0.56210283]
[1772860932983,0.25912496,1975.2,1974.3,0.56210283]
[1772860933183,6.21505992,1975.1,1974.3,0.56210283]
[1772860933388,0.25912496,1975.2,1974.3,0.56210283]
[1772860933689,6.21304375,1975.1,1974.3,0.56210283]
[1772860933887,0.66357365,1975.2,1974.3,0.56210283]
[1772860934088,6.21304447,1975.1,1974.3,0.56210283]
[1772860934387,0.66357365,1975.2,1974.3,0.56210283]
[1772860934681,6.21139109,1975.1,1974.3,0.56210283]
[1772860934986,0.66357365,1975.2,1974.3,0.56210283]
[1772860935185,6.2113889,1975.1,1974.3,0.56210283]
[1772860935387,0.66357365,1975.2,1974.3,0.56210283]
[1772860935586,6.21001733,1975.1,1974.3,0.56210283]
[1772860935786,0.66357365,1975.2,1974.3,0.56210283]
[1772860935987,6.21001912,1975.1,1974.3,0.56210283]
[1772860936188,0.66357365,1975.2,1974.3,0.56210283]
[1772860936388,0.41042365,1975.2,1974.3,0.56210283]
[1772860940991,0.00123264,1975.1,1974.3,0.56210283]
[1772860946794,1.96136626,1975.1,1974.3,0.56210283]
[1772860947098,0.00181542,1974.8,1974.3,0.56210283]
[1772860957609,1.96013362,1975.1,1974.3,0.56210283]
[1772860957905,6.22053947,1975.0,1974.3,0.56210283]
[1772860958105,1.96013362,1975.1,1974.3,0.56210283]
[1772860958306,6.22323344,1975.0,1974.3,0.56210283]
[1772860958506,1.96013362,1975.1,1974.3,0.56210283]
[1772860958707,6.20015042,1975.0,1974.3,0.56210283]
[1772860958907,1.96013362,1975.1,1974.3,0.56210283]
[1772860959207,6.20014204,1975.0,1974.3,0.56210283]
[1772860959409,1.96013362,1975.1,1974.3,0.56210283]
[1772860959608,6.2009516,1975.0,1974.3,0.56210283]
[1772860959808,1.96013362,1975.1,1974.3,0.56210283]
[1772860960009,6.20095361,1975.0,1974.3,0.56210283]
[1772860960209,1.96013362,1975.1,1974.3,0.56210283]
[1772860960508,6.20183953,1975.0,1974.3,0.56210283]
[1772860960707,1.96013362,1975.1,1974.3,0.56210283]
[1772860960910,6.20184169,1975.0,1974.3,0.56210283]
[1772860961210,1.96013362,1975.1,1974.3,0.56210283]
[1772860961410,6.20193387,1975.0,1974.3,0.56210283]
[1772860961610,1.96013362,1975.1,1974.3,0.56210283]
[1772860961811,6.20196542,1975.0,1974.3,0.56210283]
[1772860962008,1.96013362,1975.1,1974.3,0.56210283]
[1772860962210,6.20196372,1975.0,1974.3,0.56210283]
[1772860962405,1.96013362,1975.1,1974.3,0.56210283]
[1772860962601,6.20198729,1975.0,1974.3,0.56210283]
[1772860962807,1.96013362,1975.1,1974.3,0.56210283]
[1772860963003,6.20198745,1975.0,1974.3,0.56210283]
[1772860963203,1.96013362,1975.1,1974.3,0.56210283]
[1772860963408,6.20199696,1975.0,1974.3,0.56210283]
[1772860963616,1.96013362,1975.1,1974.3,0.56210283]
[1772860963913,6.20187295,1975.0,1974.3,0.56210283]
[1772860964106,1.96013362,1975.1,1974.3,0.56210283]
[1772860964304,6.2019035,1975.0,1974.3,0.56210283]
[1772860964519,1.96013362,1975.1,1974.3,0.56210283]
[1772860964712,6.20191649,1975.0,1974.3,0.56210283]
[1772860964912,1.96013362,1975.1,1974.3,0.56210283]
[1772860965115,6.20190289,1975.0,1974.3,0.56210283]
[1772860965317,1.96013362,1975.1,1974.3,0.56210283]
[1772860965515,6.2019289,1975.0,1974.3,0.56210283]
[1772860965814,1.96013362,1975.1,1974.3,0.56210283]
[1772860966014,6.20192879,1975.0,1974.3,0.56210283]
[1772860966314,1.96013362,1975.1,1974.3,0.56210283]
[1772860966516,6.20196196,1975.0,1974.3,0.56210283]
[1772860966710,1.96013362,1975.1,1974.3,0.56210283]
[1772860966905,6.2019619,1975.0,1974.3,0.56210283]
[1772860967110,1.96013362,1975.1,1974.3,0.56210283]
[1772860967312,6.20201741,1975.0,1974.3,0.56210283]
[1772860967512,1.96013362,1975.1,1974.3,0.56210283]
[1772860967712,6.20201749,1975.0,1974.3,0.56210283]
[1772860967914,1.96013362,1975.1,1974.3,0.56210283]
[1772860968120,6.20201954,1975.0,1974.3,0.56210283]
[1772860968315,1.96013362,1975.1,1974.3,0.56210283]
[1772860968612,6.20208455,1975.0,1974.3,0.56210283]
[1772860968816,1.96013362,1975.1,1974.3,0.56210283]
[1772860969014,6.20208561,1975.0,1974.3,0.56210283]
[1772860969213,1.96013362,1975.1,1974.3,0.56210283]
[1772860969415,6.20215836,1975.0,1974.3,0.56210283]
[1772860969615,1.96013362,1975.1,1974.3,0.56210283]
[1772860969815,6.20215361,1975.0,1974.3,0.56210283]
[1772860970020,1.96013362,1975.1,1974.3,0.56210283]
[1772860970220,6.20215579,1975.0,1974.3,0.56210283]
[1772860970422,1.96013362,1975.1,1974.3,0.56210283]
[1772860970625,6.20227668,1975.0,1974.3,0.56210283]
[1772860970813,4.63970564,1975.2,1974.3,0.56210283]
[1772860971118,6.70452572,1975.1,1974.3,0.56210283]
[1772860971314,6.2022764,1975.0,1974.3,0.56210283]
[1772860971515,4.63970564,1975.2,1974.3,0.56210283]
[1772860971719,6.70466029,1975.1,1974.3,0.56210283]
[1772860971921,6.20240093,1975.0,1974.3,0.56210283]
[1772860972121,4.63970564,1975.2,1974.3,0.56210283]
[1772860972422,6.70483422,1975.1,1974.3,0.56210283]
[1772860972623,4.63970564,1975.2,1974.3,0.56210283]
[1772860972624,6.20256188,1975.0,1974.3,0.56210283]
[1772860972819,4.63970564,1975.2,1974.3,0.56210283]
[1772860973021,6.704818,1975.1,1974.3,0.56210283]
[1772860973220,6.704818,1975.0,1974.3,0.56210283]
[1772860973417,13.34077683,1974.9,1974.1,0.00359171]
[1772860973621,6.20254687,1974.8,1974.1,0.00359171]
[1772860973819,6.636,1974.9,1974.1,0.60709706]
[1772860974022,6.20227889,1974.8,1974.1,0.60709706]
[1772860974222,6.636,1974.9,1974.1,0.60709706]
[1772860974416,6.20127112,1974.8,1974.1,0.60709706]
[1772860974616,6.636,1974.9,1974.1,0.60709706]
[1772860974818,6.20128455,1974.8,1974.1,0.60709706]
[1772860975019,6.636,1974.9,1974.1,0.60709706]
[1772860975225,6.20128566,1974.8,1974.1,0.60709706]
[1772860975426,6.636,1974.9,1974.1,0.60709706]
[1772860975629,6.20068642,1974.8,1974.1,0.60709706]
[1772860975830,6.636,1974.9,1974.1,0.60709706]
[1772860976030,6.20068781,1974.8,1974.1,0.60709706]
[1772860976327,6.636,1974.9,1974.1,0.60709706]
[1772860976525,6.20026084,1974.8,1974.1,0.60709706]
[1772860976724,6.636,1974.9,1974.1,0.60709706]
[1772860977025,12.83625652,1974.8,1974.1,0.60709706]
[1772860977225,6.636,1974.8,1974.1,0.60709706]
[1772860979525,1.95901606,1975.0,1974.1,0.60709706]
[1772860979732,12.83508834,1974.9,1974.1,0.60709706]
[1772860980030,6.636,1974.9,1974.1,0.60709706]
[1772860980328,1.95901606,1975.0,1974.1,0.60709706]
[1772860980629,12.83502841,1974.9,1974.1,0.60709706]
[1772860981031,6.636,1974.9,1974.1,0.60709706]
[1772860981726,1.95901606,1975.0,1974.1,0.60709706]
[1772860981926,12.83459556,1974.9,1974.1,0.60709706]
[1772860982132,6.636,1974.9,1974.1,0.60709706]
[1772860987034,4.63970564,1975.2,1974.1,0.60709706]
[1772860987231,6.636,1974.9,1974.1,0.60709706]
[1772860992236,4.63970564,1975.2,1974.1,0.60709706]
[1772860992438,13.3172074,1975.1,1974.1,0.60709706]
[1772860992637,6.6812074,1975.0,1974.1,0.60709706]
[1772860992836,6.17963462,1974.9,1974.1,0.60709706]
[1772860993033,6.636,1975.1,1974.1,0.60709706]
[1772860993327,6.6807325,1975.0,1974.1,0.60709706]
[1772860993529,6.1792012,1974.9,1974.1,0.60709706]
[1772860993736,6.636,1975.1,1974.1,0.60709706]
[1772860993937,6.67834594,1975.0,1974.1,0.60709706]
[1772860994137,6.17698697,1974.9,1974.1,0.60709706]
[1772860994437,6.636,1975.1,1974.1,0.60709706]
[1772860994636,6.67848882,1975.0,1974.1,0.60709706]
[1772860994838,6.17712007,1974.9,1974.1,0.60709706]
[1772860995138,6.636,1975.1,1974.1,0.60709706]
[1772860995340,6.67947648,1975.0,1974.1,0.60709706]
[1772860995533,6.1780336,1974.9,1974.1,0.60709706]
[1772860995733,6.636,1975.0,1974.1,0.60709706]
[1772861000441,4.63970564,1975.2,1974.1,0.60709706]
[1772861000738,6.67891095,1975.1,1974.1,0.60709706]
[1772861000946,6.64197496,1975.2,1974.1,0.60709706]
[1772861001140,6.17778768,1975.1,1974.1,0.60709706]
[1772861001336,6.64197496,1975.2,1974.1,0.60709706]
[1772861001532,6.17715064,1975.1,1974.2,1.95901606]
[1772861001740,6.64197496,1975.2,1974.3,0.60716542]
[1772861001940,0.00597496,1975.2,1974.3,0.60716542]
[1772861003537,0.00597496,1975.2,1974.6,0.6063782]
[1772861003738,10.86528199,1975.8,1974.6,0.6063782]
[1772861003944,6.67581028,1975.7,1974.6,0.6063782]
[1772861004142,6.1746465,1975.6,1974.6,0.6063782]
[1772861004437,10.86528199,1975.8,1974.6,0.6063782]
[1772861004642,6.67169868,1975.7,1974.6,0.6063782]
[1772861004843,6.17084354,1975.6,1974.6,0.6063782]
[1772861005042,10.87164231,1975.8,1974.6,0.6063782]
[1772861005242,6.66911317,1975.7,1974.6,0.6063782]
[1772861005438,6.16825677,1975.6,1974.6,0.6063782]
[1772861005642,6.64236032,1975.8,1974.6,0.6063782]
[1772861005941,6.6685361,1975.7,1974.6,0.6063782]
[1772861006243,6.64236032,1975.8,1974.6,0.6063782]
[1772861006444,6.16552763,1975.7,1974.6,0.6063782]
[1772861006647,6.64236032,1975.8,1974.6,0.6063782]
[1772861006851,6.16552443,1975.7,1974.6,0.6063782]
[1772861007146,6.64236032,1975.8,1974.6,0.6063782]
[1772861007346,6.16328106,1975.7,1974.6,0.6063782]
[1772861007645,6.64236032,1975.8,1974.6,0.6063782]
[1772861007844,6.163283,1975.7,1974.6,0.6063782]
[1772861008042,6.64236032,1975.8,1974.6,0.6063782]
[1772861008247,6.66223385,1975.7,1974.6,0.6063782]
[1772861008450,8.8743343,1975.6,1974.5,0.60825644]
[1772861008651,6.16210059,1975.5,1974.5,0.60825644]
[1772861008847,6.635,1975.4,1974.5,0.60825644]
[1772861010252,6.635,1975.4,1974.1,23.52259171]
[1772861010456,6.635,1975.4,1974.2,0.60823895]
[1772861011451,8.12010199,1975.3,1974.2,0.60823895]
[1772861011655,1.95901606,1975.3,1974.2,0.60823895]
[1772861012954,6.16195023,1975.2,1974.2,0.60823895]
[1772861013156,1.95901606,1975.3,1974.2,0.60823895]
[1772861013353,6.1620266,1975.2,1974.2,0.60823895]
[1772861013557,6.16222624,1975.1,1974.2,0.60823895]
[1772861013757,6.635,1975.0,1974.2,0.60823895]
[1772861015358,6.635,1975.0,1974.1,0.63145717]
[1772861032474,8.59406562,1975.0,1974.1,0.63145717]
[1772861041182,6.17737155,1974.9,1974.1,0.63145717]
[1772861041384,8.59406562,1975.0,1974.1,0.63145717]
[1772861041682,6.17737086,1974.9,1974.1,0.63145717]
[1772861041886,8.59406562,1975.0,1974.1,0.63145717]
[1772861042086,6.17736293,1974.9,1974.1,0.63145717]
[1772861042281,8.59406562,1975.0,1974.1,0.63145717]
[1772861042582,6.17815608,1974.9,1974.1,0.63145717]
[1772861042782,8.59406562,1975.0,1974.1,0.63145717]
[1772861043079,6.17803071,1974.9,1974.1,0.63145717]
[1772861043281,8.59406562,1975.0,1974.1,0.63145717]
[1772861043581,6.17803635,1974.9,1974.1,0.63145717]
[1772861043780,8.59406562,1975.0,1974.1,0.63145717]
[1772861044077,6.17803056,1974.9,1974.1,0.63145717]
[1772861044280,8.59406562,1975.0,1974.1,0.63145717]
[1772861044482,6.17798674,1974.9,1974.1,0.63145717]
[1772861044682,8.59406562,1975.0,1974.1,0.63145717]
[1772861044984,6.1779866,1974.9,1974.1,0.63145717]
[1772861045181,8.59406562,1975.0,1974.1,0.63145717]
[1772861045383,6.17785441,1974.9,1974.1,0.63145717]
[1772861045583,8.59406562,1975.0,1974.1,0.63145717]
[1772861045882,6.17780283,1974.9,1974.1,0.63145717]
[1772861046083,8.59406562,1975.0,1974.1,0.63145717]
[1772861046380,6.1779029,1974.9,1974.1,0.63145717]
[1772861046586,8.59406562,1975.0,1974.1,0.63145717]
[1772861046781,6.17790504,1974.9,1974.1,0.63145717]
[1772861046982,8.59406562,1975.0,1974.1,0.63145717]
[1772861047183,6.17790663,1974.9,1974.1,0.63145717]
[1772861047382,8.59406562,1975.0,1974.1,0.63145717]
[1772861047582,6.17786003,1974.9,1974.1,0.63145717]
[1772861047778,8.59406562,1975.0,1974.1,0.63145717]
[1772861048081,6.17786113,1974.9,1974.1,0.63145717]
[1772861048282,8.59406562,1975.0,1974.1,0.63145717]
[1772861048484,6.17781898,1974.9,1974.1,0.63145717]
[1772861048685,8.59406562,1975.0,1974.1,0.63145717]
[1772861048885,6.17777242,1974.9,1974.1,0.63145717]
[1772861049088,8.59406562,1975.0,1974.1,0.63145717]
[1772861049289,6.17773489,1974.9,1974.1,0.63145717]
[1772861049488,8.59406562,1975.0,1974.1,0.63145717]
[1772861049688,6.17773475,1974.9,1974.1,0.63145717]
[1772861049889,8.59406562,1975.0,1974.1,0.63145717]
[1772861050090,6.17773306,1974.9,1974.1,0.63145717]
[1772861050290,8.59406562,1975.0,1974.1,0.63145717]
[1772861050489,6.17770642,1974.9,1974.1,0.63145717]
[1772861050695,8.59406562,1975.0,1974.1,0.63145717]
[1772861050890,6.17770433,1974.9,1974.1,0.63145717]
[1772861051091,8.59406562,1975.0,1974.1,0.63145717]
[1772861051391,6.17768147,1974.9,1974.1,0.63145717]
[1772861051589,8.13674709,1974.8,1974.1,0.63145717]
[1772861051790,1.95906562,1974.8,1974.1,0.63145717]
[1772861069612,4.22928199,1975.1,1974.1,0.63145717]
[1772861069810,2.46007825,1975.0,1974.1,0.64696327]
[1772861070009,6.17249559,1974.9,1974.1,0.64696327]
[1772861070215,1.95906562,1975.0,1974.1,0.64696327]
[1772861070413,6.17222352,1974.9,1974.1,0.64696327]
[1772861070612,1.95906562,1975.0,1974.1,0.64696327]
[1772861070914,6.17222367,1974.9,1974.1,0.64696327]
[1772861071117,1.95906562,1975.0,1974.1,0.64696327]
[1772861071312,6.17230043,1974.9,1974.1,0.64696327]
[1772861071516,1.95906562,1975.0,1974.1,0.64696327]
[1772861071709,6.17230253,1974.9,1974.1,0.64696327]
[1772861071911,1.95906562,1975.0,1974.1,0.64696327]
[1772861072210,6.17229439,1974.9,1974.1,0.64696327]
[1772861072411,1.95906562,1975.0,1974.1,0.64696327]
[1772861072612,6.17224169,1974.9,1974.1,0.64696327]
[1772861072812,1.95906562,1975.0,1974.1,0.64696327]
[1772861073105,6.17142751,1974.9,1974.1,0.64696327]
[1772861073313,1.95906562,1975.0,1974.1,0.64696327]
[1772861073513,6.1715188,1974.9,1974.1,0.64696327]
[1772861073709,1.95906562,1975.0,1974.1,0.64696327]
[1772861073910,6.17179236,1974.9,1974.1,0.64696327]
[1772861074109,1.95906562,1975.0,1974.1,0.64696327]
[1772861074314,6.17187316,1974.9,1974.1,0.64696327]
[1772861074515,1.95906562,1975.0,1974.1,0.64696327]
[1772861074715,6.17187257,1974.9,1974.1,0.64696327]
[1772861075014,1.95906562,1975.0,1974.1,0.64696327]
[1772861075210,6.17163702,1974.9,1974.1,0.64696327]
[1772861075411,1.95906562,1975.0,1974.1,0.64696327]
[1772861075617,6.17172269,1974.9,1974.1,0.64696327]
[1772861075816,1.95906562,1975.0,1974.1,0.64696327]
[1772861076017,6.17172261,1974.9,1974.1,0.64696327]
[1772861076315,1.95906562,1975.0,1974.1,0.64696327]
[1772861076515,6.17179762,1974.9,1974.1,0.64696327]
[1772861076812,1.95906562,1975.0,1974.1,0.64696327]
[1772861077119,6.17179763,1974.9,1974.1,0.64696327]
[1772861077317,1.95906562,1975.0,1974.1,0.64696327]
[1772861077517,6.17188111,1974.9,1974.1,0.64696327]
[1772861077717,1.95906562,1975.0,1974.1,0.64696327]
[1772861077917,6.17187941,1974.9,1974.1,0.64696327]
[1772861078213,1.95906562,1975.0,1974.1,0.64696327]
[1772861078416,6.17196629,1974.9,1974.1,0.64696327]
[1772861078617,1.95906562,1975.0,1974.1,0.64696327]
[1772861078819,6.16152988,1974.9,1974.1,0.64696327]
[1772861079019,1.95906562,1975.0,1974.1,2.60602889]
[1772861079317,6.636,1975.1,1974.4,0.6439885]
[1772861079518,6.16178226,1975.0,1974.4,0.6439885]
[1772861079707,6.636,1975.1,1974.4,0.6439885]
[1772861079909,6.16178572,1975.0,1974.4,0.6439885]
[1772861080120,6.636,1975.1,1974.4,0.6439885]
[1772861080313,6.16156897,1975.0,1974.4,0.6439885]
[1772861080513,6.636,1975.1,1974.4,0.6439885]
[1772861080714,6.16173088,1975.0,1974.4,0.6439885]
[1772861080915,6.636,1975.1,1974.4,0.6439885]
[1772861081116,6.16182941,1975.0,1974.4,0.6439885]
[1772861081316,6.636,1975.1,1974.4,0.6439885]
[1772861081519,6.16167268,1975.0,1974.4,0.6439885]
[1772861081720,6.636,1975.1,1974.4,0.6439885]
[1772861081919,6.16167259,1975.0,1974.4,0.6439885]
[1772861082121,6.636,1975.1,1974.4,0.6439885]
[1772861083718,1.95906562,1975.0,1974.4,0.6439885]
[1772861084024,6.636,1975.1,1974.4,0.6439885]
[1772861100530,6.636,1975.1,1974.2,0.64246906]
[1772861100833,6.65860211,1975.0,1974.1,0.64606077]
[1772861101028,6.636,1975.1,1974.1,0.64606077]
[1772861101029,6.15794712,1974.9,1974.1,0.64606077]
[1772861101230,6.636,1975.1,1974.1,0.64606077]
[1772861101531,6.65802535,1975.0,1974.1,0.64606077]
[1772861101732,6.15739189,1974.9,1974.1,0.64606077]
[1772861101933,6.636,1975.1,1974.1,0.64606077]
[1772861102133,6.65803524,1975.0,1974.1,0.64606077]
[1772861102333,6.636,1975.1,1974.1,0.00359171]
[1772861102334,6.15740098,1974.9,1974.1,0.00359171]
[1772861102534,6.636,1975.1,1974.1,0.00359171]
[1772861102833,6.65775155,1975.0,1974.1,0.00359171]
[1772861103033,6.15713862,1974.9,1974.1,0.00359171]
[1772861103228,6.636,1975.1,1974.1,0.00359171]
[1772861103533,6.65736906,1975.0,1974.1,0.68851515]
[1772861103732,6.15678488,1974.9,1974.1,0.68851515]
[1772861103932,6.636,1975.1,1974.1,0.68851515]
[1772861104133,6.65756461,1975.0,1974.1,0.68851515]
[1772861104332,6.15696575,1974.9,1974.1,0.68851515]
[1772861104527,6.636,1975.1,1974.1,0.68851515]
[1772861104732,6.65718134,1975.0,1974.1,0.68851515]
[1772861104934,6.15661131,1974.9,1974.1,0.68851515]
[1772861105232,6.636,1975.1,1974.1,0.68851515]
[1772861105426,6.65688341,1975.0,1974.1,0.68851515]
[1772861105631,10.86528199,1975.1,1974.1,0.68851515]
[1772861105632,6.1563359,1974.9,1974.1,0.68851515]
[1772861105828,10.86528199,1975.1,1974.1,0.68851515]
[1772861106028,6.65730981,1975.0,1974.1,0.68851515]
[1772861106235,6.15673014,1974.9,1974.1,0.68851515]
[1772861106433,6.636,1975.1,1974.1,0.68851515]
[1772861106635,6.65684273,1975.0,1974.1,0.68851515]
[1772861106835,6.15629819,1974.9,1974.1,0.68851515]
[1772861107031,6.636,1975.1,1974.1,0.68851515]
[1772861107341,6.65513812,1975.0,1974.1,0.68851515]
[1772861107640,6.15472647,1974.9,1974.1,0.68851515]
[1772861107843,6.636,1975.1,1974.1,0.68851515]
[1772861108140,6.65468815,1975.0,1974.1,0.68851515]
[1772861108335,6.636,1975.1,1974.1,0.68851515]
[1772861108336,6.15430564,1974.9,1974.1,0.68851515]
[1772861108537,6.636,1975.1,1974.1,0.68851515]
[1772861108738,6.65311846,1975.0,1974.1,0.68851515]
[1772861109039,6.1527896,1974.9,1974.1,0.68851515]
[1772861109239,6.636,1975.1,1974.1,0.68851515]
[1772861109433,6.65270499,1975.0,1974.1,0.68851515]
[1772861109639,6.15240725,1974.9,1974.1,0.68851515]
[1772861109840,6.636,1975.1,1974.1,0.68851515]
[1772861110035,6.65272107,1975.0,1974.1,0.68851515]
[1772861110236,6.15242212,1974.9,1974.1,0.68851515]
[1772861110535,6.636,1975.1,1974.1,0.68851515]
[1772861110740,6.65224312,1975.0,1974.1,0.68851515]
[1772861111039,6.15198043,1974.9,1974.1,0.68851515]
[1772861111235,6.636,1975.1,1974.1,0.68851515]
[1772861111445,6.65183114,1975.0,1974.1,0.68851515]
[1772861111745,6.15159941,1974.9,1974.1,0.68851515]
[1772861111948,6.636,1975.1,1974.1,0.68851515]
[1772861112138,6.65181631,1975.0,1974.1,0.68851515]
[1772861112341,6.1515857,1974.9,1974.1,0.68851515]
[1772861112541,6.636,1975.1,1974.1,0.68851515]
[1772861112842,6.65147152,1975.0,1974.1,0.68851515]
[1772861113042,6.636,1975.1,1974.1,0.68851515]
[1772861113043,6.1512668,1974.9,1974.1,0.68851515]
[1772861113241,6.636,1975.1,1974.1,0.68851515]
[1772861113442,6.65055074,1975.0,1974.1,0.68851515]
[1772861113643,6.15041515,1974.9,1974.1,0.68851515]
[1772861113842,6.636,1975.1,1974.1,0.68851515]
[1772861114143,6.65054512,1975.0,1974.1,0.68851515]
[1772861114343,6.15041002,1974.9,1974.1,0.68851515]
[1772861114544,6.636,1975.1,1974.1,0.68851515]
[1772861114740,6.65048556,1975.0,1974.1,0.68851515]
[1772861114943,6.15035491,1974.9,1974.1,0.68851515]
[1772861115145,6.636,1975.1,1974.1,0.68851515]
[1772861115345,6.65049463,1975.0,1974.1,0.68851515]
[1772861115546,6.636,1974.9,1974.1,0.68851515]
[1772861121152,4.22746002,1975.3,1974.1,0.68851515]
[1772861121450,13.28832786,1975.2,1974.1,0.68851515]
[1772861121649,6.65232786,1975.1,1974.1,0.68851515]
[1772861121850,6.15206012,1975.0,1974.1,0.68851515]
[1772861122043,6.636,1975.0,1974.1,0.68851515]
[1772861133654,4.22746002,1975.2,1974.1,0.68851515]
[1772861133860,7.13675404,1975.1,1974.1,0.68851515]
[1772861134059,6.15804806,1975.0,1974.1,0.68851515]
[1772861134257,6.636,1975.1,1974.1,0.68851515]
[1772861134452,6.15803543,1975.0,1974.1,0.68851515]
[1772861134658,6.636,1975.1,1974.1,0.68851515]
[1772861134854,6.15803363,1975.0,1974.1,0.68851515]
[1772861135051,6.636,1975.1,1974.1,0.68851515]
[1772861135256,6.15803597,1975.0,1974.1,0.68851515]
[1772861135460,6.636,1975.1,1974.1,0.68851515]
[1772861135660,6.15808142,1975.0,1974.1,0.68851515]
[1772861135861,6.636,1975.1,1974.1,0.68851515]
[1772861136059,6.15808111,1975.0,1974.1,0.68851515]
[1772861136359,6.636,1975.1,1974.1,0.68851515]
[1772861136559,6.15820106,1975.0,1974.1,0.68851515]
[1772861136760,6.636,1975.1,1974.1,0.68851515]
[1772861136963,6.1582013,1975.0,1974.1,0.68851515]
[1772861137164,6.636,1975.1,1974.1,0.68851515]
[1772861137362,6.6583413,1975.0,1974.1,0.68851515]
[1772861137562,6.636,1975.1,1974.1,0.68851515]
[1772861137766,6.65832546,1975.0,1974.1,0.68851515]
[1772861138063,6.636,1975.1,1974.1,0.68851515]
[1772861138364,6.65861639,1975.0,1974.1,0.68851515]
[1772861138563,6.636,1975.1,1974.1,0.68851515]
[1772861138768,6.65832721,1975.0,1974.1,0.68851515]
[1772861139061,6.636,1975.1,1974.1,0.68851515]
[1772861139262,6.65820332,1975.0,1974.1,0.68851515]
[1772861139463,6.636,1975.1,1974.1,0.68851515]
[1772861139659,6.65846561,1975.0,1974.1,0.68851515]
[1772861139863,6.636,1975.1,1974.1,0.68851515]
[1772861140059,6.65846919,1975.0,1974.1,0.68851515]
[1772861140265,6.636,1975.1,1974.1,0.68851515]
[1772861140463,6.65877056,1975.0,1974.1,0.68851515]
[1772861140664,6.636,1975.1,1974.1,0.68851515]
[1772861140865,6.65876802,1975.0,1974.1,0.68851515]
[1772861141066,6.636,1975.1,1974.1,0.68851515]
[1772861141365,6.65876655,1975.0,1974.1,0.68851515]
[1772861141566,6.636,1975.1,1974.1,0.68851515]
[1772861141765,6.65911575,1975.0,1974.1,0.68851515]
[1772861141965,6.636,1975.1,1974.1,0.68851515]
[1772861142165,6.65911332,1975.0,1974.1,0.68851515]
[1772861142357,6.15829753,1974.9,1974.1,0.68851515]
[1772861142559,6.636,1975.1,1974.1,0.68851515]
[1772861142768,6.636,1975.1,1974.3,0.6771379]
[1772861144669,6.636,1975.3,1974.3,0.6771379]
[1772861144970,6.15601645,1975.2,1974.3,0.6771379]
[1772861145268,6.636,1975.3,1974.3,0.6771379]
[1772861145468,6.15522999,1975.2,1974.3,0.6771379]
[1772861145768,6.636,1975.3,1974.3,0.6771379]
[1772861145970,6.15503149,1975.2,1974.3,0.6771379]
[1772861146165,6.636,1975.3,1974.3,0.6771379]
[1772861146370,6.15390092,1975.2,1974.3,0.6771379]
[1772861146571,6.636,1975.3,1974.3,0.6771379]
[1772861146769,6.15366996,1975.2,1974.3,0.6771379]
[1772861146963,6.636,1975.3,1974.3,0.6771379]
[1772861147167,6.15362457,1975.2,1974.3,0.6771379]
[1772861147366,6.636,1975.3,1974.3,0.6771379]
[1772861151680,4.22746002,1975.7,1974.6,0.67922136]
[1772861151876,0.50025113,1975.6,1974.6,0.67922136]
[1772861152078,6.15136723,1975.5,1974.6,0.67922136]
[1772861152273,4.22746002,1975.7,1974.6,0.67922136]
[1772861152467,0.50011715,1975.6,1974.6,0.67922136]
[1772861152674,12.78574952,1975.5,1974.6,0.67922136]
[1772861152976,6.636,1975.5,1974.6,0.67922136]
[1772861153177,4.22746002,1975.7,1974.6,0.67922136]
[1772861153379,13.28445273,1975.6,1974.6,0.67922136]
[1772861153578,6.1484415,1975.5,1974.6,0.67922136]
[1772861154579,6.1484415,1975.5,1974.8,0.67855436]
[1772861155381,4.23382034,1975.8,1975.0,0.68237455]
[1772861155578,6.64694382,1975.7,1975.0,0.68237455]
[1772861155880,6.14716114,1975.6,1975.0,0.68237455]
[1772861156081,1.96395048,1975.8,1975.0,0.68237455]
[1772861156277,6.64706909,1975.7,1975.0,0.68237455]
[1772861156579,6.636,1975.7,1975.0,0.68237455]
[1772861157981,0.00636032,1975.8,1975.0,0.68237455]
[1772861158181,6.636,1975.7,1975.0,0.68237455]
[1772861159776,6.636,1975.7,1974.9,1.95759016]
[1772861159777,6.636,1975.7,1974.4,0.67721217]
[1772861159976,1.95759016,1975.4,1974.4,0.67721217]
[1772861161382,1.95759016,1975.4,1974.6,0.67553022]
[1772861168491,1.95759016,1975.2,1974.6,0.67553022]
[1772861173393,1.95759016,1975.0,1974.4,0.6803144]